Cogmind - Beta 13 *** ADVENTURER MODE // 2024.04.06 @ 01:50:18 Player: Sixela963 Result: Destroyed by D-53 Grenadier with Mini Grenade Launcher Performance ------------- Evolutions (2) 1000 Regions Visited (8) 1600 Robots Destroyed (71) 355 Value Destroyed (2888) 2888 Prototype IDs (31) 620 Alien Tech Used (0) 0 Bonus (1074) 1074 TOTAL SCORE: 7537 Bonus ------- High Alert Combat Kills 166 Follower Combat Kills 408 Entered Garrisons 200 Aligned with FarCom 300 Cogmind --------- Core Integrity 0/550 Matter 258/300 Energy 158/160 System Corruption 0% Temperature Cool (0) Movement Walking (190) Ox1 Location -8/Storage Parts ------- > --- POWER (1) -------- Light Nuclear Core > --- PROPULSION (4) --- Aluminum Leg Aluminum Leg Carbon-fiber Leg VSS Leg > --- UTILITY (3) ------ Small Storage Unit Reaction Control System Hardlight Generator > --- WEAPON (3) ------- Enhanced Autogun Enhanced Autogun Longsword +1 > --- INVENTORY (8) ---- Weight Redist. System Trap Scanner Advanced Targeting Computer Drone Bay (2/2) Particle Gun Heavy Particle Cannon Improved Datajack Mining Laser Peak State ------------ > --- POWER ------------ Light Nuclear Core > --- PROPULSION ------- Aluminum Leg Aluminum Leg Carbon-fiber Leg VSS Leg > --- UTILITY ---------- Small Storage Unit Reaction Control System Hardlight Generator > --- WEAPON ----------- Enhanced Autogun Enhanced Autogun Longsword +1 > --- INVENTORY -------- Weight Redist. System Trap Scanner Advanced Targeting Computer Drone Bay Particle Gun Heavy Particle Cannon Improved Datajack Mining Laser [Rating: 36] Favorites ----------- Power Light Ion Engine Engine Light Ion Engine Power Core Light Nuclear Core Propulsion Compact Wheel Leg Aluminum Leg Wheel Compact Wheel Hover Unit Airjet Flight Unit Flight Unit Utility Small Storage Unit Device ECM Suite Storage Small Storage Unit Processor Machine Analyzer Hackware Hacking Suite Weapon Longsword +1 Energy Gun Medium Laser Ballistic Gun Assault Rifle Ballistic Cannon Assault Cannon Launcher Grenade Launcher Impact Weapon Hammer Slashing Weapon Longsword +1 Special Melee Weapon Improved Datajack Build | -11 -10 -10 -10 -9 -8 -8 -8 -8 ------- Run | Yrd Mat Min Exi Min Mat Gar Mat Sto Slots Evolved 4 | . . . . . 4 . . . Power . | . . . . . . . . . Propulsion 2 | . . . . . 2 . . . Utility 1 | . . . . . 1 . . . Weapon 1 | . . . . . 1 . . . Parts Attached 73 | 6 9 1 1 . 14 18 7 17 Power 11 | 1 1 1 . . 1 3 1 3 Engine 8 | 1 1 1 . . 1 1 1 2 Core 3 | . . . . . . 2 . 1 Reactor . | . . . . . . . . . Propulsion 28 | 2 2 . . . 5 10 2 7 Treads . | . . . . . . . . . Leg 9 | . . . . . . 2 . 7 Wheel 4 | 2 2 . . . . . . . Hover 8 | . . . . . 5 3 . . Flight 7 | . . . . . . 5 2 . Utility 14 | 1 4 . . . 2 1 3 3 Device 10 | . 4 . . . 1 1 2 2 Storage 1 | 1 . . . . . . . . Processor 2 | . . . . . . . 1 1 Hackware 1 | . . . . . 1 . . . Protection . | . . . . . . . . . Artifact . | . . . . . . . . . Weapon 20 | 2 2 . 1 . 6 4 1 4 Energy Gun 6 | . 1 . . . 3 2 . . Energy Cannon . | . . . . . . . . . Ballistic Gun 6 | 2 . . . . . . 1 3 Ballistic Cannon 2 | . . . . . 1 1 . . Launcher 1 | . . . . . . 1 . . Special Weapon . | . . . . . . . . . Impact Weapon 1 | . 1 . . . . . . . Slashing Weapon 1 | . . . 1 . . . . . Piercing Weapon . | . . . . . . . . . Special Melee Weapon 3 | . . . . . 2 . . 1 Unidentified Prototypes 4 | . . . . . 2 . 1 1 Parts Lost 25 | . 2 1 . . 2 17 1 2 Power 3 | . . . . . 1 1 . 1 Propulsion 14 | . 2 1 . . . 9 1 1 Utility 3 | . . . . . . 3 . . Weapon 5 | . . . . . 1 4 . . Highest Loss Streak 8 | . 1 1 . . 2 8 1 3 To Critical Strikes . | . . . . . . . . . Average Slot Usage (%) 86 | . 98 85 85 85 83 73 77 93 Engine 9 | . 14 13 14 14 8 2 9 3 Core 1 | . . . . . . 3 . 5 Leg 4 | . . . . . . 2 . 29 Wheel 10 | . 27 14 14 14 4 . . . Hover 6 | . . . . . 18 19 . . Flight 2 | . . . . . . 4 35 2 Device 13 | . 13 14 14 14 17 6 3 13 Storage 11 | . 14 14 14 14 9 9 9 9 Energy Gun 6 | . 4 14 14 14 4 1 . . Ballistic Gun 6 | . 22 . . . . . 8 16 Ballistic Cannon 2 | . . . . . 8 5 . . Impact Weapon 2 | . 1 14 5 . . . . . Slashing Weapon 6 | . . . 8 14 9 9 9 9 Special Melee Weapon 1 | . . . . . 2 4 . . Naked Turns . | . . . . . . . . . Heaviest Build 25 | 14 16 16 15 15 23 21 16 25 Greatest Support 45 | 32 32 16 16 16 32 32 22 45 Greatest Overweight (x) 3 | . . . . . 2 3 1 1 Average Overweight (x) . | . . . . . . . . . Largest Inventory Capacity 8 | 8 8 8 8 8 8 8 8 8 Average Capacity 7 | 7 8 8 8 8 8 8 8 8 Most Carried 8 | . 8 8 8 8 8 8 8 8 Average Carried 7 | . 6 7 8 8 7 6 6 7 Final Capacity 8 | 8 8 8 8 8 8 8 8 8 Final Carried 8 | . 8 8 8 8 8 6 8 8 Class Distribution -------------------- 80% | Mutant 7% | Scavenger-Mutant 6% | Hacker-Mutant 4% | Scavenger-Sprinter Dominant Class ---------------- Mutant | -10/Materials Mutant | -10/Mines Mutant | -10/Exiles Mutant | -9/Mines Mutant | -8/Materials Hacker-Mutant | -8/Garrison Scavenger-Sprinter | -8/Materials Scavenger-Mutant | -8/Storage Resources | -11 -10 -10 -10 -9 -8 -8 -8 -8 ----------- Run | Yrd Mat Min Exi Min Mat Gar Mat Sto Matter Collected 1233 | 198 352 10 . 10 125 129 103 306 Remotely . | . . . . . . . . . Salvage Created 2200 | . 502 181 . . 310 554 103 550 Parts 123 | . 34 10 . . 24 30 6 19 Haulers Intercepted 4 | . 2 . . . . . 1 1 Recyclers Shooed 1 | . 1 . . . . . . . Parts Field Recycled . | . . . . . . . . . Retrieved Matter . | . . . . . . . . . Parts Self-Destructed . | . . . . . . . . . Prevented . | . . . . . . . . . Kills | -11 -10 -10 -10 -9 -8 -8 -8 -8 ------- Run | Yrd Mat Min Exi Min Mat Gar Mat Sto Combat Hostiles Destroyed 64 | . 13 7 . . 8 25 1 10 Melee 32 | . . 4 . . 8 16 1 3 Guns 20 | . 12 1 . . . . . 7 AOE 9 | . . . . . . 9 . . Classes Destroyed 7 | . 4 . . . 1 2 . . Hauler 4 | . 2 . . . . . 1 1 Operator 1 | . . . . . 1 . . . Watcher 2 | . 1 . . . 1 . . . Swarmer 22 | . 6 3 . . 4 9 . . Grunt 38 | . 7 4 . . 4 14 . 9 Duelist 1 | . . . . . . 1 . . Sentry 3 | . . . . . . 1 1 1 Best Kill Streak 7 | . 6 3 . . 6 7 1 3 Combat Bots Only 7 | . 5 3 . . 6 7 1 3 Max Kills in Single Turn 6 | . 1 1 . . 1 6 1 2 Gunslinging 1 | . . . . . . . . 1 Exploded 6 | . . . . . . 6 . . Melee 1 | . . 1 . . 1 1 1 1 Uniques/NPCs Destroyed . | . . . . . . . . . Combat | -11 -10 -10 -10 -9 -8 -8 -8 -8 -------- Run | Yrd Mat Min Exi Min Mat Gar Mat Sto Hostile Shots Fired 388 | . 84 34 . . 23 167 10 70 Missed 137 | . 22 10 . . 11 65 4 25 Damage Taken 2767 | . 495 183 . 12 104 1335 70 568 Core 746 | . 167 24 . . 5 434 11 105 Absorbed by Shields 32 | . . . . . . . . 32 Ignored by Resistances 830 | . 157 57 . 4 32 387 19 174 Core Remaining (%) 61 | 100 . . . 23 . . . . Volleys Fired 84 | . 40 10 . . 1 6 . 27 Largest 2 | . 2 1 . . 2 1 . 2 Hottest 94 | . 70 50 . . 94 55 . 50 Shots Fired 142 | . 80 10 . . 2 6 . 44 Gun 137 | . 80 10 . . 1 2 . 44 Cannon 1 | . . . . . 1 . . . Launcher 4 | . . . . . . 4 . . Special . | . . . . . . . . . Kinetic 115 | . 70 . . . 1 . . 44 Thermal 23 | . 10 10 . . 1 2 . . Explosive 4 | . . . . . . 4 . . Electromagnetic . | . . . . . . . . . Robot Hit Streak 32 | . 21 31 . . 32 2 . 12 Robot Miss Streak 2 | . 2 . . . 1 1 . 2 Penetration Max . | . . . . . . . . . Secondary Targets 6 | . 3 . . . . . . 3 Max Gunslinging Chain 1 | . 1 . . . . . . 1 Shots Hit Robots 211 | . 67 23 . . 28 37 6 50 Core Hits 91 | . 23 6 . . 10 28 2 22 Critical Kills 1 | . . . . . . . . 1 Critical Parts Destroyed 4 | . 3 1 . . . . . . Critical Strikes 14 | . 3 2 . . . 5 . 4 Burn 1 | . . 1 . . . . . . Destroy 2 | . 1 . . . . . . 1 Smash 3 | . 2 1 . . . . . . Sever 8 | . . . . . . 5 . 3 Melee Attacks 105 | . 5 14 . . 28 38 6 14 Impact 19 | . 5 14 . . . . . . Slashing 68 | . . . . . 13 35 6 14 Piercing . | . . . . . . . . . Sneak Attacks 18 | . . 1 . . 15 . 1 1 Combat Hostiles 1 | . . 1 . . . . . . Follow-up Attacks . | . . . . . . . . . Damage Inflicted 6342 | . 923 468 . . 574 2737 342 1298 Guns 1638 | . 800 126 . . 13 . . 699 Cannons . | . . . . . . . . . Explosions 1321 | . . . . . . 1321 . . Melee 3383 | . 123 342 . . 561 1416 342 599 Ramming . | . . . . . . . . . Kinetic 1385 | . 686 . . . . . . 699 Thermal 253 | . 114 126 . . 13 . . . Explosive 1321 | . . . . . . 1321 . . Electromagnetic . | . . . . . . . . . Impact 465 | . 123 342 . . . . . . Slashing 2918 | . . . . . 561 1416 342 599 Piercing . | . . . . . . . . . Highest Corruption . | . . . . . . . . . Average Corruption . | . . . . . . . . . Corruption Purged . | . . . . . . . . . Corruption Blocked . | . . . . . . . . . Overload Shots . | . . . . . . . . . Overflow Damage 399 | . 39 72 . . 18 265 . 5 Projectiles . | . . . . . . . . . Explosions 149 | . . . . . . 149 . . Melee 250 | . 39 72 . . 18 116 . 5 Knockbacks 1 | . 1 . . . . . . . Impact 1 | . 1 . . . . . . . Kinetic . | . . . . . . . . . Secondary . | . . . . . . . . . Self-Inflicted Damage 245 | . . . . . . 245 . . Shots 2 | . . . . . . 2 . . Rammed . | . . . . . . . . . Targets Rammed . | . . . . . . . . . Kicked . | . . . . . . . . . Crushed . | . . . . . . . . . Highest Temperature 141 | . 115 141 . . 15 16 . 17 Average Temperature 36 | . 39 74 . . 10 6 . 6 Received Heat Transfer 1237 | . 219 57 . . 45 549 36 331 Siege Activations . | . . . . . . . . . Robots Corrupted . | . . . . . . . . . Combat Hostiles . | . . . . . . . . . Parts Fried 5 | . 2 2 . . . . . 1 Impact Corruptions 6 | . 2 4 . . . . . . Robots Melted . | . . . . . . . . . Combat Hostiles . | . . . . . . . . . Parts Melted 1 | . . 1 . . . . . . Heat Transferred 814 | . 333 444 . . 37 . . . Parts Sabotaged . | . . . . . . . . . Parts Stolen . | . . . . . . . . . Parts Stripped . | . . . . . . . . . Power Chain Reactions . | . . . . . . . . . Alert | -11 -10 -10 -10 -9 -8 -8 -8 -8 ------- Run | Yrd Mat Min Exi Min Mat Gar Mat Sto Peak Influence 766 | . 233 175 . . 172 766 396 542 Initial 321 | . . . . . . 2 321 142 Average 150 | . 66 62 . . 38 329 333 325 Maximum Alert Level 3 | . 1 . . . . 3 1 2 Low Security (%) 72 | 100 99 100 . 100 100 36 . 20 Level 1 13 | . . . . . . 13 100 39 Level 2 12 | . . . . . . 41 . 40 Level 3 1 | . . . . . . 8 . . Level 4 . | . . . . . . . . . Level 5 . | . . . . . . . . . High Security . | . . . . . . . . . Max Security . | . . . . . . . . . Squads Dispatched 12 | . 3 . . . 4 . . 5 Investigation 7 | . 3 . . . 3 . . 1 Extermination . | . . . . . . . . . Reinforcement 3 | . . . . . 1 . . 2 Assault 1 | . . . . . . . . 1 Garrison 1 | . . . . . . . . 1 Intercept . | . . . . . . . . . Searches Triggered . | . . . . . . . . . Construction Impeded . | . . . . . . . . . Haulers Reinforced . | . . . . . . . . . Active Scanning Responses . | . . . . . . . . . Cargo Convoy Interrupts . | . . . . . . . . . Stealth | -11 -10 -10 -10 -9 -8 -8 -8 -8 --------- Run | Yrd Mat Min Exi Min Mat Gar Mat Sto Distress Signals 4 | . 2 . . . 2 . . . Communications Jammed . | . . . . . . . . . Distress Signals . | . . . . . . . . . Times Spotted 112 | . 18 9 . 7 18 29 2 29 Peak Tracking Total 20 | . 5 2 . 20 6 8 4 6 Tactical Retreats 12 | . 2 3 . . 3 3 . 1 Traps | -11 -10 -10 -10 -9 -8 -8 -8 -8 ------- Run | Yrd Mat Min Exi Min Mat Gar Mat Sto Traps Triggered 13 | . 2 . . . 1 7 . 3 Indirectly . | . . . . . . . . . Trap Hack Attempts 21 | . . . . . . 21 . . Triggered . | . . . . . . . . . Disarmed 1 | . . . . . . 1 . . Reprogrammed 1 | . . . . . . 1 . . Reused . | . . . . . . . . . Traps Extracted . | . . . . . . . . . Installed 2 | . . 1 . . 1 . . . Triggered . | . . . . . . . . . Most Traps Carried 1 | . . 1 1 1 1 . . . Machines | -11 -10 -10 -10 -9 -8 -8 -8 -8 ---------- Run | Yrd Mat Min Exi Min Mat Gar Mat Sto Machines Disabled 9 | . . . . . . 5 . 4 Max in Single Turn 2 | . . . . . . 2 . 1 Garrison Access 1 | . . . . . . . . 1 Garrison Relay 1 | . . . . . . 1 . . Phase Generator 1 | . . . . . . 1 . . Machines Repaired . | . . . . . . . . . Machines Dismantled . | . . . . . . . . . Machines Sabotaged . | . . . . . . . . . Overloaded Fab Kills . | . . . . . . . . . Hacking | -11 -10 -10 -10 -9 -8 -8 -8 -8 --------- Run | Yrd Mat Min Exi Min Mat Gar Mat Sto Machines Accessed 28 | . 9 . 5 . 3 3 5 3 Terminals 20 | . 8 . . . 2 3 5 2 Fabricators . | . . . . . . . . . Repair Stations . | . . . . . . . . . Recycling Units 2 | . 1 . . . . . . 1 Scanalyzers . | . . . . . . . . . Garrison Access 1 | . . . . . 1 . . . Total Hacks 101 | . 25 . 50 . 9 3 9 5 Successful 81 | . 14 . 50 . 5 3 7 2 Failed 20 | . 11 . . . 4 . 2 3 Catastrophic 4 | . 2 . . . 2 . . . Database Lockouts . | . . . . . . . . . Manual 1 | . . . 1 . . . . . Terminals 45 | . 24 . . . 6 3 9 3 Fabricators . | . . . . . . . . . Repair Stations . | . . . . . . . . . Recycling Units 3 | . 1 . . . . . . 2 Scanalyzers . | . . . . . . . . . Garrison Access 3 | . . . . . 3 . . . Terminal Hacks 78 | . 13 . 50 . 3 3 7 2 Record 52 | . . . 49 . 1 . 2 . Robot Analysis 2 | . 1 . . . . . 1 . Prototype ID Bank 2 | . 1 . . . . . 1 . Branch Access Points 3 | . 1 . . . . . 1 1 Emergency Access Points 1 | . . . . . . 1 . . Recycling Unit Index 1 | . . . . . . . . 1 Alert Level 3 | . 1 . . . 2 . . . Unreport Threat 1 | . 1 . . . . . . . Locate Traps 3 | . 2 . . . . . 1 . Transport Status 1 | . 1 . . . . . . . Reinforcement Status 1 | . 1 . . . . . . . Hauler Manifests 2 | . 2 . . . . . . . Zone Layout 3 | . 2 . . . . . 1 . Garrison Registry 1 | . . . . . . 1 . . Patrol Navigation 1 | . . . . . . 1 . . Derelict Proto ID Bank 1 | . . . 1 . . . . . Fabricator Hacks . | . . . . . . . . . Repair Station Hacks . | . . . . . . . . . Recycling Unit Hacks 1 | . 1 . . . . . . . Report Inventory 1 | . 1 . . . . . . . Scanalyzer . | . . . . . . . . . Garrison Access Hacks 2 | . . . . . 2 . . . Unlock Access 1 | . . . . . 1 . . . Coupler Status 1 | . . . . . 1 . . . Unauthorized Hacks . | . . . . . . . . . Terminals . | . . . . . . . . . Fabricators . | . . . . . . . . . Repair Stations . | . . . . . . . . . Recycling Units . | . . . . . . . . . Scanalyzers . | . . . . . . . . . Garrison Access . | . . . . . . . . . Data Cores Recovered 1 | . . . . . 1 . . . Used . | . . . . . . . . . Hacking Detections 17 | . 7 . . . 3 2 3 2 Full Trace Events 6 | . 3 . . . 2 . . 1 Feedback Events . | . . . . . . . . . Feedback Blocked . | . . . . . . . . . Robot Schematics Acquired . | . . . . . . . . . Robots Built . | . . . . . . . . . Authchips . | . . . . . . . . . Time . | . . . . . . . . . Total Robot Build Rating . | . . . . . . . . . Part Schematics Acquired . | . . . . . . . . . Parts Built . | . . . . . . . . . Authchips . | . . . . . . . . . Time . | . . . . . . . . . Total Part Build Rating . | . . . . . . . . . Parts Repaired . | . . . . . . . . . Time . | . . . . . . . . . Parts Recycled . | . . . . . . . . . Recycled Matter . | . . . . . . . . . Retrieved Matter . | . . . . . . . . . Retrieved Components . | . . . . . . . . . Parts Scanalyzed . | . . . . . . . . . Part Schematics Acquired . | . . . . . . . . . Parts Damaged . | . . . . . . . . . Bothacking | -11 -10 -10 -10 -9 -8 -8 -8 -8 ------------ Run | Yrd Mat Min Exi Min Mat Gar Mat Sto Used RIF Installer . | . . . . . . . . . Robots Hacked 9 | . . . . . 7 2 . . Non-combat 7 | . . . . . 7 . . . Combat 2 | . . . . . . 2 . . Robot Hacks Applied 11 | . . . . . 9 2 . . parse_system 2 | . . . . . . 2 . . no_distress 6 | . . . . . 6 . . . find_recycling 2 | . . . . . 2 . . . check_alert 1 | . . . . . 1 . . . Relay Couplers Released 8 | . . . . . . 5 . 3 Machine Destruction 8 | . . . . . . 5 . 3 Fabnet Peak Effective % . | . . . . . . . . . Robots Rewired . | . . . . . . . . . Allies Hacked . | . . . . . . . . . Hacks Repelled . | . . . . . . . . . Allies | -11 -10 -10 -10 -9 -8 -8 -8 -8 -------- Run | Yrd Mat Min Exi Min Mat Gar Mat Sto Total Allies 4 | . . 2 . . . . . 2 Largest Group 2 | . . 2 2 . . . . 2 Highest-Rated Group 116 | . . 53 53 . . . . 116 Highest-Rated Ally 100 | . . 31 31 . . . . 100 Total Orders . | . . . . . . . . . Ally Attacks 37 | . . . . . . . . 37 Total Damage 1137 | . . . . . . . . 1137 Kills 13 | . . . . . . . . 13 Allies Corrupted . | . . . . . . . . . Allies Melted . | . . . . . . . . . Intel | -11 -10 -10 -10 -9 -8 -8 -8 -8 ------- Run | Yrd Mat Min Exi Min Mat Gar Mat Sto Robot Analysis Total 2 | . 1 . . . . . 1 . Derelict Logs Recovered 1 | . . 1 . . . . . . Drone Launches . | . . . . . . . . . Drone Recoveries . | . . . . . . . . . Exploration | -11 -10 -10 -10 -9 -8 -8 -8 -8 ------------- Run | Yrd Mat Min Exi Min Mat Gar Mat Sto Turns Passed 6736 | 45 1222 721 1083 99 1530 860 267 909 Spaces Moved 4898 | 37 969 579 1067 54 647 798 269 478 Core 12 | 1 . . . . . 11 . . Treads . | . . . . . . . . . Legs 489 | . . . . . . 87 . 402 Wheels 2866 | 36 969 579 1067 54 161 . . . Hover 1020 | . . . . . 486 534 . . Flight 511 | . . . . . . 166 269 76 Fastest Speed 31 | 50 100 100 100 100 48 31 31 34 Average Speed 95 | 98 100 100 100 100 102 73 31 138 Slowest Speed 200 | 100 100 100 100 100 180 200 114 190 Overloaded Moves . | . . . . . . . . . Propulsion Burnouts . | . . . . . . . . . Robots Hopped . | . . . . . . . . . Cave-ins Triggered . | . . . . . . . . . Exploration Rate (%) 55 | 4 91 93 94 25 34 75 21 59 Regions Visited 8 Branch Regions 4 Pre-discovered Areas 2 | . . 1 1 . . . . . Known Exits Taken 3 | . 1 . . . 1 . 1 . Unknown Exits Taken 4 | 1 . 1 1 1 . . . . Scrap Searched 2 | . . 1 . 1 . . . . Spaces Dug . | . . . . . . . . . Terrain Destroyed 160 | . . . . . 1 159 . . Melee . | . . . . . . . . . Projectile 1 | . . . . . 1 . . . AOE 159 | . . . . . . 159 . . Terrain Rammed . | . . . . . . . . . Walls Destroyed . | . . . . . . . . . Machines Disabled . | . . . . . . . . . Actions | -11 -10 -10 -10 -9 -8 -8 -8 -8 --------- Run | Yrd Mat Min Exi Min Mat Gar Mat Sto Total 6691 | 42 1132 686 1083 99 1496 1029 442 682 Wait 1400 | . 96 79 15 46 789 93 157 125 Move 4887 | 36 968 578 1066 53 647 793 268 478 Hop . | . . . . . . . . . Pick Up 26 | . 9 1 . . 7 5 2 2 Fast Attach 51 | 6 5 1 1 . 9 9 4 16 Attach 11 | . 2 . . . . 7 1 1 Detach 5 | . 2 . . . . . . 3 Swap 12 | . 2 . . . 5 2 2 1 Drop 32 | . 3 2 1 . 9 3 2 12 Fire 84 | . 40 10 . . 1 6 . 27 Melee 105 | . 5 14 . . 28 38 6 14 Ram . | . . . . . . . . . Kick . | . . . . . . . . . Crush . | . . . . . . . . . Escape Stasis 55 | . . . . . . 52 . 3 Rewire . | . . . . . . . . . Trap 23 | . . 1 . . 1 21 . . Miscellaneous . | . . . . . . . . . Route ------- -11/Scrapyard -10/Materials (discovered 4 exits: [*Mat x3] / *Min) -10/Mines (discovered 3 exits: [*Mat x2] / *Exi) -10/Exiles (discovered 2 exits: [*Min x2]) -9/Mines -8/Materials (discovered 2 exits: [*Fac] / Gar) -8/Garrison (discovered 3 exits: *Mat x3) -8/Materials (discovered 2 exits: *Sto x2) -8/Storage (discovered 2 exits: [*Fac] / Rec) History --------- Turn | Location | Event 29 | -11/Scrapyard | Discovered new exit (range 16) 46 | -11/Scrapyard | Entered Materials 78 | -10/Materials | Discovered new exit (range 15) 300 | -10/Materials | Build established: Mutant 452 | -10/Materials | Discovered new exit (range 11) 741 | -10/Materials | Identified exit to Mines 863 | -10/Materials | Discovered new exit (range 16) 921 | -10/Materials | Core integrity fell below 50% 1145 | -10/Materials | Discovered new exit (range 16) 1268 | -10/Materials | Entered Mines 1334 | -10/Mines | Learned location of Mines (-9) 1376 | -10/Mines | Discovered new exit (range 10) 1657 | -10/Mines | Discovered new exit (range 6) 1808 | -10/Mines | Found a hidden stash of uninstalled traps 1957 | -10/Mines | Deemed a non-threat by the Exiles lab entrance 1958 | -10/Mines | Discovered new exit (range 5) 1989 | -10/Mines | Entered Exiles 1989 | -10/Exiles | Accompanied by 2 allies 2013 | -10/Exiles | Met 8R-AWN 2019 | -10/Exiles | Led the pair of lost Derelicts to a safe place 2052 | -10/Exiles | Met EX-HEX 2145 | -10/Exiles | Met EX-DEC 2212 | -10/Exiles | Learned location of Zion (-7) 2259 | -10/Exiles | Discovered new exit (range 14) 2337 | -10/Exiles | Met EX-BIN 2356 | -10/Exiles | Aligned with FarCom system 2357 | -10/Exiles | Given EX-Vault access code 2417 | -10/Exiles | Opened EX-Vault 2428 | -10/Exiles | Found Longsword +1 2451 | -10/Exiles | Warned to stay clear of 0b10 Research branches 2544 | -10/Exiles | Visited The Gauntlet 2848 | -10/Exiles | Discovered new exit (range 14) 3072 | -10/Exiles | Left Exiles lab with Longsword +1 3072 | -10/Exiles | Entered Mines 3130 | -9/Mines | Discovered new exit (range 12) 3164 | -9/Mines | Assembled infested the area 3169 | -9/Mines | Assisted by a Guerilla fighting off Assembled 3171 | -9/Mines | Entered Materials 3171 | -8/Materials | Evolved 4 slots: Propulsion x2, Utility x1, Weapon x1 4051 | -8/Materials | Discovered new exit (range 10) 4701 | -8/Materials | Identified exit to Garrison 4701 | -8/Materials | Entered Garrison 4846 | -8/Garrison | Triggered checkpoint 4892 | -8/Garrison | Discovered new exit (range 54) 4892 | -8/Garrison | Discovered new exit (range 76) 4892 | -8/Garrison | Discovered new exit (range 51) 4982 | -8/Garrison | Triggered checkpoint 4997 | -8/Garrison | Build established: Hacker-Mutant 5012 | -8/Garrison | Garrison Relay disabled 5068 | -8/Garrison | Triggered checkpoint 5076 | -8/Garrison | Triggered checkpoint 5124 | -8/Garrison | Phase Generator disabled 5131 | -8/Garrison | Attempted to access garrison exit controls, blocked by remote lockdown 5174 | -8/Garrison | Lost 8 parts (4n2u2w) 5314 | -8/Garrison | Core integrity fell below 50% 5351 | -8/Garrison | Attempted to access garrison exit controls, blocked by remote lockdown 5404 | -8/Garrison | Destroyed 7 combat bots 5404 | -8/Garrison | Lost 6 parts (3n1u2w) 5425 | -8/Garrison | Build established: Mutant 5438 | -8/Garrison | Triggered checkpoint 5508 | -8/Garrison | Triggered checkpoint 5561 | -8/Garrison | Entered Materials 5723 | -8/Materials | Discovered new exit (range 16) 5726 | -8/Materials | Identified exit to Storage 5790 | -8/Materials | Build established: Scavenger-Sprinter 5799 | -8/Materials | Core integrity fell below 20% 5828 | -8/Materials | Entered Storage 5889 | -8/Storage | Lost 3 parts (1p2n) 5931 | -8/Storage | Met 01-MTF 6134 | -8/Storage | Build established: Mutant 6286 | -8/Storage | Identified exit to Recycling 6521 | -8/Storage | Build established: Scavenger-Mutant 6546 | -8/Storage | Discovered new exit (range 3) 6726 | -8/Storage | Garrison activated, responded to threat 6737 | -8/Storage | Destroyed by D-53 Grenadier with Mini Grenade Launcher Last Messages --------------- ALERT: Activating Garrison Access S001. G-47 Trooper destroyed. D-53 Grenadier emerges from the garrison. Component Storage disabled. K-01 Serf collects debris. Terminal disabled. G-47 Trooper shuts down. Chain reaction triggered in Lgt. Nuclear Core. G-47 Trooper destroyed. ALERT: Garrison Access compromised, dispatching assault squad. Garrison Access disabled. Relay Coupler [Sentry] tumbles out of Garrison Access. Relay Coupler [Swarmer] tumbles out of Garrison Access. Relay Coupler [NC] tumbles out of Garrison Access. G-47 Trooper destroyed. Switching to secondary target: D-53 Grenadier. Map ----- +----------------------------------------------------+ | | | | | ?????????????????????????????????????????????? | | ?????????????????????????????????????????????? | | ?#########???????????????????????????????????? | | ?# #! !#???????????????????????????????????? | | ## " #???????????????????????????????????? | | # * #???????????????????????????????????? | | + " ! #???????????????????????????????????? | | ##T# !! #???????????????????????????????????? | | #### !#???????????????????????????????????? | | #??######???????????????????????????????????? | | #???????????????????????????????????????????? | | #???????????????????????????????????????????? | | #?????????????????Y???????????????>?????????? | | #???????????????????????????????????????????? | | #??????????????????????####+##??????????????? | | #??????????????????????# #####??????????? | | #????????????????????### o ## #?????????? | | #????????????????????# " ## #?????????? | | #????????????????????#" ! " ## #?????????? | | #????????????????????# %= " #? #?????????? | | #???????????????????##! = ## ########??? | | #???????????????????#" % d #? # ! [ ##?? | | #???????????????????#"G!!p #? # *%! #?? | | %#???????????????????#"""@% ! ###+# " " #??? | | #???????????????????## * % + """ #??? | | #????????????????????## =!= ### # """ #??? | | !#?????????????????????# ![%[ #?# # #??? | | #???????????w?????????# * #?# ########### | | #?????????????????????### #####?# #?# # | | #???????????????????????###?????# #?#""" # | | #???????????????????????????????# #?#""" # | | #??????????w????????????????????# #?#""" # | | !#???????????????????????????????# ###""" # | | %#???????????????????????????????# #""" # | | #???????????????????????????????# + # | | #???????????????????????????????# # # | | #???????????????????????????????# # # | | #??####?????????????????????????# # # | | #?? ##????????????????????????# #= # | | #?? ?????????????????????????# ######### | | %#?# #?????????????????????????# #???????? | | #?# #?????????????????????????# #???????? | | #?# #???????????????##+##+##### #???????? | | #?# #?????????????? # ^ ########? | | ### #????????????? ^ + #!!!!#? | | [== #?????????????? # # #? | | [== #???????????????####+###### # #!!! #? | | ==! ##????????????????????????# #T######? | +----------------------------------------------------+ Best States ------------- Heat Dissipation 45 Energy Generation 14 Energy Capacity 265 Matter Stores 300 Matter Capacity 300 Sight Range 16 Robot Scan Range 15 Terrain Scan Density 10 ECM Strength 1 Additional Mass Support 6 Resistance: KI 20 Resistance: TH 20 Resistance: EX 20 Resistance: EM 20 Resistance: I 20 Resistance: S 20 Resistance: P 20 Evasion (%) 63 Targeting Accuracy 8 Offensive Hacking 20 Authchip Count 1 Item Schematics ----------------- None Robot Schematics ------------------ None Fabricated ------------ Nothing Alien Tech Used ----------------- None Achievements -------------- Hehehe Hunted Librarian Quick And Dirty Challenges ------------ None Game ------ Seed StasisPhaseClaw Manual? 0 Play Time 01:58:04 Cumulative 10.7 hours Start 2024.04.05 @ 23:41:50 End 2024.04.06 @ 01:50:18 Sessions 1 Manual Loads 0 Difficulty Adventurer Special Mode None Game No. 6 Rogue 0 Adventurer 6 Explorer 0 Win Type - Total 0 Types 0/0/0/0/0/0/0/0/0 Lore% 16 Gallery% 15 Achievement% 15 Wizard Run 0 Options --------- Layout 1 ASCII 0 Keyboard 0 Movement Mouse Keybinds 0 Fullscreen 1 Font 24/Smallcaps Map View 50x35 Zoom Use 0% Tactical HUD 0 Map Filters NONE Filters NONE Steam 1 RUN: 4cda12f6-bcd6-4aa0-bc04-22e731f733c7